[Event "ESP-chT 2nd Division 2019"]
[Site "Linares"]
[Date "2019.08.19"]
[Round "1.2"]
[White "Del Rio De Angelis, Salvador G."]
[Black "Lopez Gonzalez, Alfonso"]
[Result "1-0"]
[ECO "D61"]
[WhiteElo "2472"]
[BlackElo "2219"]
[Annotator "ChessBase"]
[PlyCount "119"]
[EventDate "2019.08.19"]
[EventType "team-tourn"]
[EventCountry "ESP"]
[SourceTitle "playchess.com"]
[Source "ChessBase"]
[SourceQuality "1"]
[TimeControl "5400+30"]

1. d4 {[%emt 0:00:00]} d5 {[%emt 0:00:00]} 2. c4 {[%emt 0:00:00]} e6 {[%emt 0:00:00]} 3. Nc3 {[%emt 0:00:00]} Nf6 {[%emt 0:00:09]} 4. Bg5 {[%emt 0:00:08]} Be7 {[%emt 0:00:06]} 5. e3 {[%emt 0:00:16]} Nbd7 {[%emt 0:00:32]} 6. Nf3 {[%emt 0:00:19]} O-O {[%emt 0:01:32]} 7. Qc2 {[%emt 0:00:28]} c6 {[%emt 0:02:44]} 8. O-O-O {[%emt 0:00:24]} dxc4 {[%emt 0:08:56]} 9. Bxc4 {[%emt 0:00:09]} Qa5 {[%emt 0:08:17]} 10. Kb1 {[%emt 0:03:06]} b6 {[%emt 0:15:58]} 11. e4 {[%emt 0:05:51]} b5 {[%emt 0:12:55]} 12. Bd3 {[%emt 0:00:29]} h6 {[%emt 0:13:41]} 13. Bh4 {[%emt 0:00:57]} Re8 {[%emt 0:08:01]} 14. e5 {[%emt 0:07:09]} Nd5 {[%emt 0:00:45]} 15. Nxd5 {[%emt 0:00:16]} cxd5 {[%emt 0:00:09]} 16. Qc6 {[%emt 0:03:14]} Qb6 {[%emt 0:12:01]} 17. Qxb6 {[%emt 0:01:01]} Nxb6 {[%emt 0:00:23]} 18. Bxb5 {[%emt 0:00:23]} Bd7 {[%emt 0:00:07]} 19. Bxd7 {[%emt 0:00:20]} Nxd7 {[%emt 0:00:04]} 20. Bxe7 {[%emt 0:00:09]} Rxe7 {[%emt 0:00:03]} 21. Rc1 {[%emt 0:00:34]} Nb6 {[%emt 0:00:57]} 22. Rc6 {[%emt 0:02:26]} Rb8 {[%emt 0:00:40]} 23. Rhc1 {[%emt 0:00:35]} Rbb7 {[%emt 0:00:05]} 24. Ne1 {[%emt 0:03:54]} Nc4 {[%emt 0:04:31]} 25. Nd3 {[%emt 0:00:14]} Kh7 {[%emt 0:01:30]} 26. Rc3 {[%emt 0:06:19]} Rb8 {[%emt 0:02:12]} 27. Ra6 {[%emt 0:05:08]} Rc7 {[%emt 0:01:11]} 28. Kc1 {[%emt 0:09:19]} Rbc8 {[%emt 0:00:51]} 29. Ne1 {[%emt 0:01:29]} Kg6 {[%emt 0:01:37]} 30. Nc2 {[%emt 0:00:56]} Nb6 {[%emt 0:00:36]} 31. Rxc7 {[%emt 0:01:11]} Rxc7 {[%emt 0:00:04]} 32. Ra3 {[%emt 0:01:25]} f6 {[%emt 0:00:25]} 33. Rg3+ {[%emt 0:00:32]} Kf7 {[%emt 0:00:06]} 34. exf6 {[%emt 0:01:43]} gxf6 {[%emt 0:00:06]} 35. b3 {[%emt 0:00:15]} a5 {[%emt 0:00:55]} 36. Kd2 {[%emt 0:00:27]} a4 {[%emt 0:02:05]} 37. Rh3 {[%emt 0:01:17]} axb3 {[%emt 0:00:19]} 38. axb3 {[%emt 0:00:07]} Kg7 {[%emt 0:00:12]} 39. Rc3 {[%emt 0:00:21]} Rb7 {[%emt 0:00:52]} 40. Ne1 {[%emt 0:02:20]} Na8 {[%emt 0:00:52]} 41. Rc8 {[%emt 0:03:29]} Nc7 {[%emt 0:00:05]} 42. Nd3 {[%emt 0:00:45]} Ra7 {[%emt 0:01:06]} 43. Ke3 {[%emt 0:02:22]} Nb5 {[%emt 0:01:29]} 44. Rc6 {[%emt 0:02:59]} Kf7 {[%emt 0:01:18]} 45. Rb6 {[%emt 0:00:14]} Nc7 {[%emt 0:00:22]} 46. Nc5 {[%emt 0:01:00]} Ke7 {[%emt 0:00:29]} 47. g4 {[%emt 0:01:05]} e5 {[%emt 0:01:09]} 48. dxe5 {[%emt 0:00:33]} fxe5 {[%emt 0:00:02]} 49. Rxh6 {[%emt 0:00:20]} Ra1 {[%emt 0:00:14]} 50. Rc6 {[%emt 0:01:56]} Kd8 {[%emt 0:00:12]} 51. Rd6+ {[%emt 0:00:36]} Kc8 {[%emt 0:00:34]} 52. g5 {[%emt 0:00:56]} Re1+ {[%emt 0:01:14]} 53. Kf3 {[%emt 0:00:47]} e4+ {[%emt 0:00:52]} 54. Kg2 {[%emt 0:00:46]} e3 {[%emt 0:00:25]} 55. fxe3 {[%emt 0:00:39]} Rxe3 {[%emt 0:00:06]} 56. g6 {[%emt 0:01:04]} Re5 {[%emt 0:00:18]} 57. h4 {[%emt 0:00:21]} Ne8 {[%emt 0:00:37]} 58. Re6 {[%emt 0:03:57]} Rxe6 {[%emt 0:00:06]} 59. Nxe6 {[%emt 0:00:06]} Kd7 {[%emt 0:00:03]} 60. Nf4 {[%emt 0:00:27]} 1-0

[Event "ESP-chT 2nd Division 2019"]
[Site "Linares"]
[Date "2019.08.19"]
[Round "1.3"]
[White "Espineira Gonzalez, Pablo D."]
[Black "Iruzubieta Villaluenga, Jesus M"]
[Result "0-1"]
[ECO "A25"]
[WhiteElo "2179"]
[BlackElo "2438"]
[Annotator "NA"]
[PlyCount "95"]
[EventDate "2019.08.19"]
[EventType "team-tourn"]
[EventCountry "ESP"]
[SourceTitle "playchess.com"]
[Source "ChessBase"]
[SourceQuality "1"]
[TimeControl "5400+30"]

1. c4 {[%emt 0:00:00]} e5 {[%emt 0:00:32]} 2. Nc3 {[%emt 0:00:00]} Nc6 {[%emt 0:01:21]} 3. g3 {[%emt 0:00:00]} g6 {[%emt 0:00:17]} 4. Bg2 {[%emt 0:00:00]} Bg7 {[%emt 0:00:07]} 5. Rb1 {[%emt 0:00:35]} d6 {[%emt 0:03:37]} 6. b4 {[%emt 0:03:00]} a6 {[%emt 0:14:01]} 7. d3 {[%emt 0:09:49]} f5 {[%emt 0:00:30]} 8. Nd5 {[%emt 0:00:08]} Nce7 {[%emt 0:04:30]} 9. Bb2 {[%emt 0:10:02]} Nxd5 {[%emt 0:05:29]} 10. cxd5 {[%emt 0:00:14]} Nf6 {[%emt 0:00:10]} 11. Qb3 {[%emt 0:02:20]} O-O {[%emt 0:00:43]} 12. Nf3 {[%emt 0:04:22]} h6 {[%emt 0:00:37]} 13. O-O {[%emt 0:01:07]} Bd7 {[%emt 0:02:25]} 14. Nd2 {[%emt 0:03:38]} Be8 {[%emt 0:01:46]} 15. a4 {[%emt 0:04:43]} Bf7 {[%emt 0:05:05]} 16. b5 {[%emt 0:01:48]} c6 {[%emt 0:08:40]} 17. e4 {[%emt 0:03:38]} axb5 {[%emt 0:02:43]} 18. axb5 {[%emt 0:00:24]} cxd5 {[%emt 0:01:51]} 19. exd5 {[%emt 0:00:09]} h5 {[%emt 0:01:50]} 20. Ra1 {[%emt 0:01:26]} Rxa1 {[%emt 0:00:31]} 21. Rxa1 {[%emt 0:00:15]} h4 {[%emt 0:02:59]} 22. gxh4 {[%emt 0:25:19]} Bh6 {[%emt 0:10:19]} 23. Bc3 {[%emt 0:01:57]} Nh5 {[%emt 0:02:08]} 24. Nc4 {[%emt 0:11:04]} Nf4 {[%emt 0:00:56]} 25. Bd2 {[%emt 0:00:46]} Ne2+ {[%emt 0:08:46]} 26. Kf1 {[%emt 0:03:56]} Nd4 {[%emt 0:01:25]} 27. Qa4 {[%emt 0:07:48]} Bxd2 {[%emt 0:00:34]} 28. Nxd2 {[%emt 0:00:03]} Be8 {[%emt 0:06:55]} 29. Rb1 {[%emt 0:02:16]} Qxh4 {[%emt 0:00:28]} 30. h3 {[%emt 0:00:47]} Qh5 {[%emt 0:03:58]} 31. Qd1 {[%emt 0:02:04]} Qxd1+ {[%emt 0:00:27]} 32. Rxd1 {[%emt 0:00:07]} Bxb5 {[%emt 0:00:06]} 33. Nc4 {[%emt 0:00:21]} Bxc4 {[%emt 0:00:32]} 34. dxc4 {[%emt 0:00:01]} Rc8 {[%emt 0:02:49]} 35. f4 {[%emt 0:00:08]} Nc2 {[%emt 0:00:28]} 36. Kf2 {[%emt 0:01:27]} exf4 {[%emt 0:00:22]} 37. Rb1 {[%emt 0:02:00]} Ne3 {[%emt 0:04:58]} 38. Bf3 {[%emt 0:00:06]} Nxc4 {[%emt 0:00:29]} 39. Rxb7 {[%emt 0:00:28]} Ne5 {[%emt 0:00:08]} 40. Bg2 {[%emt 0:01:08]} Rc2+ {[%emt 0:00:44]} 41. Kg1 {[%emt 0:00:05]} f3 {[%emt 0:00:52]} 42. Bf1 {[%emt 0:00:02]} Rd2 {[%emt 0:00:19]} 43. Re7 {[%emt 0:00:04]} Kf8 {[%emt 0:00:51]} 44. Ra7 {[%emt 0:00:23]} Rxd5 {[%emt 0:00:11]} 45. Kf2 {[%emt 0:00:09]} g5 {[%emt 0:00:52]} 46. Ke3 {[%emt 0:00:06]} Rd1 {[%emt 0:00:28]} 47. Bb5 {[%emt 0:00:01]} Rb1 {[%emt 0:00:44]} 48. Kd4 0-1

[Event "ESP-chT 2nd Division 2019"]
[Site "Linares"]
[Date "2019.08.19"]
[Round "1.4"]
[White "Trigo Urquijo, Sergio"]
[Black "Lopez Grana, Carmen"]
[Result "1-0"]
[ECO "E22"]
[WhiteElo "2385"]
[BlackElo "1761"]
[Annotator "NA"]
[PlyCount "67"]
[EventDate "2019.08.19"]
[EventType "team-tourn"]
[EventCountry "ESP"]
[SourceTitle "playchess.com"]
[Source "ChessBase"]
[SourceQuality "1"]
[TimeControl "5400+30"]

1. d4 {[%emt 0:00:00]} Nf6 {[%emt 0:00:00]} 2. c4 {[%emt 0:00:00]} e6 {[%emt 0:00:00]} 3. Nc3 {[%emt 0:00:37]} Bb4 {[%emt 0:01:14]} 4. Qb3 {[%emt 0:00:41]} Bxc3+ {[%emt 0:01:25]} 5. Qxc3 {[%emt 0:00:10]} d5 {[%emt 0:01:07]} 6. Nf3 {[%emt 0:04:23]} Nbd7 {[%emt 0:03:51]} 7. Bg5 {[%emt 0:03:10]} c6 {[%emt 0:04:59]} 8. e3 {[%emt 0:06:46]} Qc7 {[%emt 0:04:02]} 9. Bf4 {[%emt 0:03:08]} Qd8 {[%emt 0:00:21]} 10. Bd3 {[%emt 0:03:00]} O-O {[%emt 0:02:52]} 11. O-O {[%emt 0:03:23]} dxc4 {[%emt 0:00:42]} 12. Qxc4 {[%emt 0:01:04]} h6 {[%emt 0:01:16]} 13. h3 {[%emt 0:05:43]} Qe7 {[%emt 0:08:28]} 14. Rac1 {[%emt 0:02:30]} Nb6 {[%emt 0:01:56]} 15. Qc5 {[%emt 0:02:09]} Qd8 {[%emt 0:03:32]} 16. e4 {[%emt 0:03:54]} Nfd7 {[%emt 0:05:01]} 17. Qa3 {[%emt 0:04:43]} Re8 {[%emt 0:02:55]} 18. Rfd1 {[%emt 0:05:46]} Qf6 {[%emt 0:03:30]} 19. Bc7 {[%emt 0:01:14]} g5 {[%emt 0:00:56]} 20. Bb1 {[%emt 0:01:44]} a5 {[%emt 0:02:29]} 21. Ne5 {[%emt 0:06:50]} a4 {[%emt 0:07:52]} 22. Ng4 {[%emt 0:10:19]} Qg7 {[%emt 0:01:01]} 23. Qb4 {[%emt 0:00:38]} h5 {[%emt 0:04:46]} 24. Nh2 {[%emt 0:01:07]} Qf8 {[%emt 0:02:39]} 25. Qd2 {[%emt 0:00:32]} Qg7 {[%emt 0:02:14]} 26. Qe2 {[%emt 0:01:25]} Qh6 {[%emt 0:02:50]} 27. Qe3 {[%emt 0:00:18]} Ra5 {[%emt 0:01:20]} 28. d5 {[%emt 0:03:32]} Rb5 {[%emt 0:03:43]} 29. dxc6 {[%emt 0:01:12]} bxc6 {[%emt 0:00:35]} 30. Rxc6 {[%emt 0:00:52]} Na8 {[%emt 0:00:38]} 31. Nf3 {[%emt 0:03:41]} h4 {[%emt 0:02:02]} 32. Qd4 {[%emt 0:02:15]} Nxc7 {[%emt 0:01:49]} 33. Rxc7 {[%emt 0:00:06]} Nf6 {[%emt 0:00:48]} 34. Qxa4 {[%emt 0:01:18]} 1-0

[Event "ESP-chT 2nd Division 2019"]
[Site "Linares"]
[Date "2019.08.19"]
[Round "1.8"]
[White "Khamrakulov, Ibragim S."]
[Black "Ruiz Cuadrado, Fernando"]
[Result "1-0"]
[ECO "C54"]
[WhiteElo "2429"]
[BlackElo "1876"]
[Annotator "NA"]
[PlyCount "59"]
[EventDate "2019.08.19"]
[EventType "team-tourn"]
[EventCountry "ESP"]
[SourceTitle "playchess.com"]
[Source "ChessBase"]
[SourceQuality "1"]
[TimeControl "5400+30"]

1. e4 {[%emt 0:00:00]} e5 {[%emt 0:00:00]} 2. Nf3 {[%emt 0:00:00]} Nc6 {[%emt 0:00:00]} 3. Bc4 {[%emt 0:00:23]} Bc5 {[%emt 0:00:26]} 4. c3 {[%emt 0:01:14]} Nf6 {[%emt 0:02:03]} 5. d3 {[%emt 0:00:24]} d6 {[%emt 0:02:05]} 6. O-O {[%emt 0:01:06]} Bb6 {[%emt 0:06:20]} 7. Bb3 {[%emt 0:00:17]} Ne7 {[%emt 0:00:07]} 8. Be3 {[%emt 0:02:28]} O-O {[%emt 0:01:07]} 9. Nbd2 {[%emt 0:20:39]} Ng6 {[%emt 0:01:15]} 10. d4 {[%emt 0:03:28]} Qe7 {[%emt 0:07:00]} 11. a4 {[%emt 0:03:14]} c6 {[%emt 0:05:00]} 12. dxe5 {[%emt 0:08:29]} dxe5 {[%emt 0:03:00]} 13. Bxb6 {[%emt 0:00:52]} axb6 {[%emt 0:00:14]} 14. g3 {[%emt 0:02:16]} Rd8 {[%emt 0:06:48]} 15. Qe2 {[%emt 0:00:25]} Bg4 {[%emt 0:02:19]} 16. Rfd1 {[%emt 0:11:41]} b5 {[%emt 0:02:05]} 17. a5 {[%emt 0:03:53]} Qc7 {[%emt 0:03:43]} 18. h3 {[%emt 0:09:05]} Bxf3 {[%emt 0:04:53]} 19. Nxf3 {[%emt 0:00:15]} Rxd1+ {[%emt 0:01:59]} 20. Rxd1 {[%emt 0:02:40]} h6 {[%emt 0:00:48]} 21. c4 {[%emt 0:02:48]} bxc4 {[%emt 0:02:11]} 22. Qxc4 {[%emt 0:04:35]} Rxa5 {[%emt 0:01:27]} 23. h4 {[%emt 0:00:21]} b5 {[%emt 0:09:19]} 24. Qc5 {[%emt 0:01:37]} Nxe4 {[%emt 0:04:59]} 25. Qc2 {[%emt 0:00:20]} Nxg3 {[%emt 0:04:05]} 26. Qxg6 {[%emt 0:02:22]} Ne2+ {[%emt 0:00:18]} 27. Kf1 {[%emt 0:00:29]} Nf4 {[%emt 0:00:22]} 28. Bxf7+ {[%emt 0:01:29]} Kf8 {[%emt 0:00:13]} 29. Qf5 {[%emt 0:00:10]} Ra8 {[%emt 0:01:40]} 30. Nxe5 {[%emt 0:01:01]} 1-0

[Event "ESP-chT 2nd Division 2019"]
[Site "Linares"]
[Date "2019.08.19"]
[Round "1.10"]
[White "Calzetta Ruiz, Monica"]
[Black "Lopez Bezanilla, Claudio"]
[Result "1-0"]
[ECO "B23"]
[WhiteElo "2257"]
[BlackElo "1528"]
[Annotator "NA"]
[PlyCount "27"]
[EventDate "2019.08.19"]
[EventType "team-tourn"]
[EventCountry "ESP"]
[SourceTitle "playchess.com"]
[Source "ChessBase"]
[SourceQuality "1"]
[TimeControl "5400+30"]

1. e4 {[%emt 0:00:00]} c5 {[%emt 0:00:00]} 2. Nc3 {[%emt 0:00:16]} d6 {[%emt 0:00:00]} 3. f4 {[%emt 0:00:21]} Nf6 {[%emt 0:03:09]} 4. Nf3 {[%emt 0:00:45]} a6 {[%emt 0:04:16]} 5. g3 {[%emt 0:04:25]} e6 {[%emt 0:05:56]} 6. Bg2 {[%emt 0:07:46]} Be7 {[%emt 0:03:57]} 7. O-O {[%emt 0:00:41]} O-O {[%emt 0:01:08]} 8. d4 {[%emt 0:09:50]} cxd4 {[%emt 0:00:08]} 9. Nxd4 {[%emt 0:00:03]} Nbd7 {[%emt 0:00:56]} 10. a4 {[%emt 0:07:23]} Qa5 {[%emt 0:29:20]} 11. Kh1 {[%emt 0:10:03]} Nb6 {[%emt 0:00:19]} 12. Nb3 {[%emt 0:02:50]} Qb4 {[%emt 0:01:05]} 13. a5 {[%emt 0:00:36]} Rd8 {[%emt 0:18:02]} 14. axb6 {[%emt 0:01:06]} 1-0

[Event "ESP-chT 2nd Division 2019"]
[Site "Linares"]
[Date "2019.08.19"]
[Round "1.11"]
[White "Perez Perez, Gabriel"]
[Black "Sosa, Tomas"]
[Result "0-1"]
[ECO "D35"]
[WhiteElo "2105"]
[BlackElo "2508"]
[Annotator "ChessBase"]
[PlyCount "72"]
[EventDate "2019.08.19"]
[EventType "team-tourn"]
[EventCountry "ESP"]
[SourceTitle "playchess.com"]
[Source "ChessBase"]
[SourceQuality "1"]
[TimeControl "5400+30"]

1. d4 {[%emt 0:00:00]} d5 {[%emt 0:00:06]} 2. c4 {[%emt 0:00:05]} e6 {[%emt 0:00:10]} 3. Nc3 {[%emt 0:02:03]} Nf6 {[%emt 0:00:35]} 4. cxd5 {[%emt 0:00:23]} exd5 {[%emt 0:00:07]} 5. Bg5 {[%emt 0:00:12]} c6 {[%emt 0:00:49]} 6. e3 {[%emt 0:03:03]} Be7 {[%emt 0:02:11]} 7. Bd3 {[%emt 0:00:38]} Nbd7 {[%emt 0:00:18]} 8. Nf3 {[%emt 0:00:38]} O-O {[%emt 0:03:04]} 9. Qc2 {[%emt 0:01:35]} Re8 {[%emt 0:00:52]} 10. O-O {[%emt 0:01:19]} g6 {[%emt 0:02:06]} 11. h3 {[%emt 0:05:32]} Nh5 {[%emt 0:04:14]} 12. Bxe7 {[%emt 0:05:30]} Qxe7 {[%emt 0:00:09]} 13. Rab1 {[%emt 0:01:32]} Nb6 {[%emt 0:00:25]} 14. b4 {[%emt 0:11:53]} a6 {[%emt 0:00:11]} 15. Rfe1 {[%emt 0:04:36]} Be6 {[%emt 0:02:09]} 16. Na4 {[%emt 0:06:55]} Nxa4 {[%emt 0:02:17]} 17. Qxa4 {[%emt 0:00:56]} Ng7 {[%emt 0:00:18]} 18. Qc2 {[%emt 0:10:13]} Nf5 {[%emt 0:07:40]} 19. a4 {[%emt 0:00:36]} Rec8 {[%emt 0:00:05]} 20. a5 {[%emt 0:08:25]} Nd6 {[%emt 0:01:37]} 21. Nd2 {[%emt 0:00:29]} Re8 {[%emt 0:00:40]} 22. Nb3 {[%emt 0:01:51]} Rad8 {[%emt 0:00:28]} 23. Nc5 {[%emt 0:00:31]} Bc8 {[%emt 0:00:06]} 24. Rbc1 {[%emt 0:05:30]} Kg7 {[%emt 0:04:06]} 25. Kh2 {[%emt 0:02:02]} g5 {[%emt 0:05:19]} 26. Qe2 {[%emt 0:01:41]} Ne4 {[%emt 0:05:25]} 27. Qh5 {[%emt 0:05:02]} Rd6 {[%emt 0:00:42]} 28. Kg1 {[%emt 0:00:36]} Rh6 {[%emt 0:00:18]} 29. Qe2 {[%emt 0:07:29]} g4 {[%emt 0:01:37]} 30. f3 {[%emt 0:00:16]} gxh3 {[%emt 0:02:10]} 31. fxe4 {[%emt 0:01:39]} hxg2 {[%emt 0:00:08]} 32. e5 {[%emt 0:00:27]} Qh4 {[%emt 0:00:51]} 33. Qxg2+ {[%emt 0:00:24]} Kh8 {[%emt 0:00:06]} 34. Re2 {[%emt 0:04:10]} Bh3 {[%emt 0:00:23]} 35. Qh2 {[%emt 0:00:42]} Rg8+ {[%emt 0:00:08]} 36. Kh1 {[%emt 0:00:29]} Bg4 {[%emt 0:00:05]} 0-1

[Event "ESP-chT 2nd Division 2019"]
[Site "Linares"]
[Date "2019.08.19"]
[Round "1.12"]
[White "Garriga Cazorla, Pere"]
[Black "Rodriguez Redondo, Adhara"]
[Result "1-0"]
[ECO "D31"]
[WhiteElo "2495"]
[BlackElo "2013"]
[Annotator "ChessBase"]
[PlyCount "95"]
[EventDate "2019.08.19"]
[EventType "team-tourn"]
[EventCountry "ESP"]
[SourceTitle "playchess.com"]
[Source "ChessBase"]
[SourceQuality "1"]
[TimeControl "5400+30"]

1. d4 {[%emt 0:00:00]} d5 {[%emt 0:00:00]} 2. c4 {[%emt 0:00:00]} e6 {[%emt 0:00:00]} 3. Nc3 {[%emt 0:00:00]} a6 {[%emt 0:00:00]} 4. cxd5 {[%emt 0:01:02]} exd5 {[%emt 0:00:00]} 5. Nf3 {[%emt 0:00:03]} c6 {[%emt 0:01:40]} 6. e4 {[%emt 0:00:05]} dxe4 {[%emt 0:02:55]} 7. Ng5 {[%emt 0:00:06]} Be7 {[%emt 0:17:26]} 8. Bc4 {[%emt 0:13:24]} Bxg5 {[%emt 0:06:23]} 9. Qh5 {[%emt 0:00:14]} g6 {[%emt 0:02:55]} 10. Qxg5 {[%emt 0:00:06]} Qxg5 {[%emt 0:04:37]} 11. Bxg5 {[%emt 0:00:07]} h6 {[%emt 0:02:43]} 12. Bh4 {[%emt 0:04:09]} f5 {[%emt 0:12:46]} 13. Bg3 {[%emt 0:01:03]} Nf6 {[%emt 0:02:39]} 14. O-O-O {[%emt 0:04:51]} Nbd7 {[%emt 0:03:40]} 15. Bb3 {[%emt 0:10:52]} Nb6 {[%emt 0:07:59]} 16. Be5 {[%emt 0:00:50]} Ke7 {[%emt 0:07:42]} 17. d5 {[%emt 0:00:08]} Nbxd5 {[%emt 0:02:58]} 18. Bxd5 {[%emt 0:00:36]} cxd5 {[%emt 0:00:34]} 19. Nxd5+ {[%emt 0:00:04]} Nxd5 {[%emt 0:00:11]} 20. Bxh8 {[%emt 0:00:04]} Be6 {[%emt 0:00:23]} 21. Be5 {[%emt 0:00:06]} Kf7 {[%emt 0:03:52]} 22. Rd4 {[%emt 0:01:42]} a5 {[%emt 0:01:07]} 23. a3 {[%emt 0:01:27]} b5 {[%emt 0:01:16]} 24. Rhd1 {[%emt 0:02:09]} Ne7 {[%emt 0:03:06]} 25. Rd6 {[%emt 0:07:13]} Rc8+ {[%emt 0:04:22]} 26. Kb1 {[%emt 0:03:54]} Rc5 {[%emt 0:02:19]} 27. Bd4 {[%emt 0:03:58]} Rc8 {[%emt 0:03:19]} 28. Bc3 {[%emt 0:01:23]} a4 {[%emt 0:02:11]} 29. Rb6 {[%emt 0:03:30]} Nd5 {[%emt 0:01:28]} 30. Rb7+ {[%emt 0:00:35]} Rc7 {[%emt 0:00:44]} 31. Rxc7+ {[%emt 0:04:48]} Nxc7 {[%emt 0:00:04]} 32. Rd8 {[%emt 0:00:37]} Ke7 {[%emt 0:01:31]} 33. Rh8 {[%emt 0:01:29]} h5 {[%emt 0:00:44]} 34. Bb4+ {[%emt 0:01:16]} Kf6 {[%emt 0:01:04]} 35. Rf8+ {[%emt 0:00:43]} Bf7 {[%emt 0:01:51]} 36. Bc3+ {[%emt 0:03:28]} Ke7 {[%emt 0:00:50]} 37. Rb8 {[%emt 0:00:05]} Be8 {[%emt 0:00:36]} 38. Rb7 {[%emt 0:01:55]} Kd6 {[%emt 0:00:24]} 39. Be5+ {[%emt 0:00:16]} Kxe5 {[%emt 0:00:07]} 40. Rxc7 {[%emt 0:00:04]} Kf6 {[%emt 0:00:42]} 41. Kc2 {[%emt 0:00:33]} g5 {[%emt 0:00:41]} 42. Kc3 {[%emt 0:00:42]} Ke6 {[%emt 0:00:39]} 43. Kd4 {[%emt 0:00:09]} g4 {[%emt 0:00:30]} 44. Rh7 {[%emt 0:00:33]} Bg6 {[%emt 0:00:29]} 45. Rb7 {[%emt 0:00:05]} Be8 {[%emt 0:00:08]} 46. Rb6+ {[%emt 0:00:05]} Ke7 {[%emt 0:00:18]} 47. Ke5 {[%emt 0:00:06]} Bd7 {[%emt 0:00:10]} 48. Rh6 {[%emt 0:00:05]} 1-0

[Event "ESP-chT 2nd Division 2019"]
[Site "Linares"]
[Date "2019.08.19"]
[Round "1.14"]
[White "Marti Puig, Patricia"]
[Black "Alvarez Alonso, Alberto"]
[Result "0-1"]
[ECO "C05"]
[WhiteElo "1683"]
[BlackElo "1986"]
[Annotator "NA RC"]
[PlyCount "102"]
[EventDate "2019.08.19"]
[EventType "team-tourn"]
[EventCountry "ESP"]
[SourceTitle "playchess.com"]
[Source "ChessBase"]
[SourceQuality "1"]
[TimeControl "5400+30"]

1. e4 {[%emt 0:00:00]} e6 {[%emt 0:00:00]} 2. d4 {[%emt 0:00:00]} d5 {[%emt 0:00:00]} 3. Nd2 {[%emt 0:00:00]} Nf6 {[%emt 0:00:11]} 4. e5 {[%emt 0:00:00]} Nfd7 {[%emt 0:00:07]} 5. f4 {[%emt 0:00:07]} c5 {[%emt 0:00:08]} 6. c3 {[%emt 0:01:16]} Nc6 {[%emt 0:00:06]} 7. Ndf3 {[%emt 0:01:29]} cxd4 {[%emt 0:00:25]} 8. cxd4 {[%emt 0:00:45]} Bb4+ {[%emt 0:00:21]} 9. Bd2 {[%emt 0:00:46]} Be7 {[%emt 0:00:40]} 10. Ne2 {[%emt 0:02:30]} f6 {[%emt 0:01:18]} 11. h4 {[%emt 0:07:43]} b5 {[%emt 0:13:17]} 12. Rc1 {[%emt 0:24:15]} Qb6 {[%emt 0:01:42]} 13. g3 {[%emt 0:03:09]} fxe5 {[%emt 0:00:45]} 14. fxe5 {[%emt 0:00:55]} O-O {[%emt 0:12:52]} 15. Bf4 {[%emt 0:05:06]} Na5 {[%emt 0:44:37]} 16. Qd3 {[%emt 0:05:43]} Re8 {[%emt 0:03:55]} 17. Ng5 {[%emt 0:10:52]} Nf8 {[%emt 0:00:32]} 18. Bh3 {[%emt 0:01:42]} Bd7 {[%emt 0:01:46]} 19. O-O {[%emt 0:01:24]} h6 {[%emt 0:03:44]} 20. Nf3 {[%emt 0:06:17]} Rec8 {[%emt 0:01:06]} 21. Bd2 {[%emt 0:04:24]} Nc4 {[%emt 0:01:24]} 22. b3 {[%emt 0:00:57]} Nxd2 {[%emt 0:00:47]} 23. Qxd2 {[%emt 0:00:17]} Rxc1 {[%emt 0:01:37]} 24. Rxc1 {[%emt 0:00:35]} Rc8 {[%emt 0:01:38]} 25. Rxc8 {[%emt 0:01:11]} Bxc8 {[%emt 0:00:07]} 26. Nf4 {[%emt 0:00:27]} Qc6 {[%emt 0:01:43]} 27. b4 {[%emt 0:05:12]} Bd7 {[%emt 0:01:58]} 28. a3 {[%emt 0:04:17]} a5 {[%emt 0:00:14]} 29. Ne1 {[%emt 0:01:48]} axb4 {[%emt 0:01:30]} 30. axb4 {[%emt 0:00:06]} Qc4 {[%emt 0:00:27]} 31. Nc2 {[%emt 0:02:04]} Qb3 {[%emt 0:01:16]} 32. Nd3 {[%emt 0:01:15]} Be8 {[%emt 0:01:18]} 33. Nc5 {[%emt 0:02:38]} Qxg3+ {[%emt 0:00:08]} 34. Qg2 {[%emt 0:00:30]} Qxh4 {[%emt 0:01:28]} 35. Nxe6 {[%emt 0:00:46]} Nxe6 {[%emt 0:01:01]} 36. Bxe6+ {[%emt 0:00:03]} Kh8 {[%emt 0:00:11]} 37. Bxd5 {[%emt 0:00:16]} Bxb4 {[%emt 0:01:56]} 38. Be4 {[%emt 0:02:45]} Be7 {[%emt 0:00:47]} 39. d5 {[%emt 0:00:28]} Bc5+ {[%emt 0:00:15]} 40. Kf1 {[%emt 0:00:53]} Qf4+ {[%emt 0:00:18]} 41. Qf3 {[%emt 0:01:53]} Qxe5 {[%emt 0:00:38]} 42. Ne3 {[%emt 0:01:13]} Bh5 {[%emt 0:01:33]} 43. Qf5 {[%emt 0:01:16]} Qxf5+ {[%emt 0:00:29]} 44. Nxf5 {[%emt 0:00:02]} Bg4 {[%emt 0:00:34]} 45. d6 {[%emt 0:01:05]} Bxf5 {[%emt 0:00:07]} 46. Bxf5 {[%emt 0:00:33]} Bxd6 {[%emt 0:00:06]} 47. Bg6 {[%emt 0:00:33]} Kg8 {[%emt 0:00:14]} 48. Ke2 {[%emt 0:00:09]} Kf8 {[%emt 0:00:08]} 49. Kd3 {[%emt 0:00:10]} Ke7 {[%emt 0:00:25]} 50. Kd4 {[%emt 0:00:34]} Kf6 {[%emt 0:00:19]} 51. Bd3 {[%emt 0:00:19]} b4 {[%emt 0:00:10]} 0-1